fUST/lending_fUST_20250907
["ID","MTS","AMOUNT","RATE_DAILY","PERIOD"]
[383929430,1757177454035,-1785.88,0.00013972,2]
[383929431,1757177454045,-2641.73,0.00013972,2]
[383929432,1757177454055,-811.76,0.00013972,2]
[383929433,1757177454065,-1179.98,0.00013972,2]
[383929434,1757177454076,-480.0,0.00013972,2]
[383929435,1757177454087,-480.0,0.00013972,2]
[383929436,1757177454097,-480.0,0.00013972,2]
[383929437,1757177454109,-185.985098,0.00013972,2]
[383929438,1757177454119,-480.0,0.00013972,2]
[383929439,1757177454129,-480.0,0.00013972,2]
[383929440,1757177454140,-2177.29,0.00013972,2]
[383929441,1757177454149,-1653.43,0.00013972,2]
[383929442,1757177454159,-480.0,0.00013972,2]
[383929443,1757177454168,-1040.95,0.00013972,2]
[383929444,1757177454178,-1800.91,0.00013972,2]
[383929445,1757177454188,-767.71,0.00013972,2]
[383929446,1757177454198,-480.0,0.00013972,2]
[383929447,1757177454208,-480.0,0.00013972,2]
[383929448,1757177454218,-480.0,0.00013972,2]
[383929449,1757177454228,-483.37829575,0.00013972,2]
[383929450,1757177454237,-624.64,0.00013972,2]
[383929451,1757177454247,-845.79,0.00013972,2]
[383929452,1757177454257,-492.36,0.00013972,2]
[383929453,1757177454267,-480.0,0.00013972,2]
[383929454,1757177454277,-480.0,0.00013972,2]
[383929455,1757177454286,-712.82,0.00013972,2]
[383929456,1757177454295,-480.0,0.00013972,2]
[383929457,1757177454304,-1852.25,0.00013972,2]
[383929458,1757177454313,-480.0,0.00013972,2]
[383929459,1757177454323,-188.93975815,0.00013972,2]
[383929460,1757177454331,-947.78,0.00013972,2]
[383929461,1757177454343,-1118.06,0.00013972,2]
[383929462,1757177454354,-480.0,0.00013972,2]
[383929463,1757177454365,-749.42,0.00013972,2]
[383929464,1757177454375,-536.7,0.00013972,2]
[383929465,1757177454385,-889.4,0.00013972,2]
[383929466,1757177454394,-534.92569805,0.00013972,2]
[383929467,1757177454405,-480.0,0.00013972,2]
[383929468,1757177454415,-500.0,0.00013973,2]
[383929469,1757177454425,-500.0,0.00013973,2]
[383929470,1757177454435,-500.51471,0.00013973,2]
[383929471,1757177454446,-502.33241197,0.00013973,2]
[383929472,1757177454456,-500.0,0.00013973,2]
[383929473,1757177454466,-500.0,0.00013973,2]
[383929474,1757177454476,-500.0,0.00013973,2]
[383929475,1757177454486,-500.0,0.00013973,2]
[383929476,1757177454496,-500.0,0.00013973,2]
[383929477,1757177454507,-500.0,0.00013973,2]
[383929478,1757177454517,-500.0,0.00013973,2]
[383929479,1757177454526,-500.0,0.00013973,2]
[383929480,1757177454536,-501.03620947,0.00013973,2]
[383929481,1757177454545,-500.0,0.00013973,2]
[383929482,1757177454554,-500.0,0.00013973,2]
[383929483,1757177454564,-500.0,0.00013973,2]
[383929484,1757177454574,-500.0,0.00013973,2]
[383929485,1757177454584,-500.0,0.00013973,2]
[383929486,1757177454594,-500.0,0.00013973,2]
[383929487,1757177454604,-500.0,0.00013973,2]
[383929488,1757177454614,-500.0,0.00013973,2]
[383929489,1757177454623,-500.54581016,0.00013973,2]
[383929490,1757177454634,-500.0,0.00013973,2]
[383929491,1757177454644,-501.12300234,0.00013973,2]
[383929492,1757177454654,-519.63847923,0.00013973,2]
[383929493,1757177454663,-500.0,0.00013973,2]
[383929494,1757177454673,-500.0,0.00013973,2]
[383929495,1757177454683,-500.0,0.00013973,2]
[383929496,1757177454693,-500.0,0.00013973,2]
[383929497,1757177454703,-153.0,0.00013973,2]
[383929498,1757177454713,-100000.0,0.0001399,2]
[383929499,1757177454723,-6000.0,0.00013999,2]
[383929500,1757177454732,-2990.03075802,0.00014,2]
[383929501,1757177454742,-188.2346916,0.00014,2]
[383929502,1757177454752,-192.0072397,0.00014,2]
[383929503,1757177454761,-323.0719025,0.00014,2]
[383929504,1757177454771,-494.2076651,0.00014,2]
[383929505,1757177454780,-188.2346916,0.00014,2]
[383929506,1757177454790,-188.2346916,0.00014,2]
[383929507,1757177454799,-188.2346916,0.00014,2]
[383929508,1757177454809,-188.2346916,0.00014,2]
[383929509,1757177454819,-188.2346916,0.00014,2]
[383929510,1757177454829,-188.2346916,0.00014,2]
[383929511,1757177454839,-188.2346916,0.00014,2]
[383929512,1757177454849,-155.0481722,0.00014,2]
[383929513,1757177454860,-188.2346916,0.00014,2]
[383929514,1757177454870,-600.0,0.00014011,2]
[383929515,1757177454880,-3000.0,0.0001404,2]
[383929516,1757177454890,-10572.35515662,0.00014099,2]
[383929517,1757177454901,-188.2346916,0.000141,2]
[383929518,1757177454911,-188.2346916,0.000141,2]
[383929519,1757177454923,-188.2346916,0.000141,2]
[383929520,1757177454932,-188.2346916,0.000141,2]
[383929521,1757177454942,-151.0,0.000141,2]
[383929522,1757177454952,-165.21169703,0.00014146,2]
[383929523,1757177454961,-600.0,0.00014155,2]
[383929524,1757177454972,-187.84861596,0.00014176,2]
[383929525,1757177454983,-814.0,0.00014199,2]
[383929526,1757177454993,-303.71,0.00014199,2]
[383929527,1757177455002,-151.0,0.000142,2]
[383929528,1757177455011,-478.87282249,0.00014221,2]
[383929529,1757177455021,-401.39850244,0.00014221,2]
[383929530,1757177455033,-1000.0,0.00014221,2]
[383929531,1757177455043,-354.831575,0.0001423,2]
[383929532,1757177455053,-273.51520989,0.00014246,2]
[383929533,1757177455063,-500.0,0.00014246,2]
[383929534,1757177455074,-480.0,0.00014246,2]
[383929535,1757177455083,-982.86,0.00014246,2]
[383929536,1757177455093,-480.0,0.00014246,2]
[383929537,1757177455102,-480.0,0.00014246,2]
[383929538,1757177455112,-480.0,0.00014246,2]
[383929539,1757177455121,-606.60688294,0.00014246,2]
[383929540,1757177455131,-480.0,0.00014246,2]
[383929541,1757177455140,-480.0,0.00014246,2]
[383929542,1757177455150,-480.0,0.00014246,2]
[383929543,1757177455160,-480.0,0.00014246,2]
[383929544,1757177455170,-653.35,0.00014246,2]
[383929545,1757177455179,-203.88298268,0.00014246,2]
[383929546,1757177455190,-480.0,0.00014246,2]
[383929547,1757177455199,-480.0,0.00014246,2]
[383929548,1757177455209,-1088.68,0.00014246,2]
[383929549,1757177455219,-1031.24,0.00014246,2]
[383929550,1757177455228,-480.0,0.00014246,2]
[383929551,1757177455237,-480.0,0.00014246,2]
[383929552,1757177455247,-500.22271763,0.00014246,2]
[383929553,1757177455257,-480.0,0.00014246,2]
[383929554,1757177455266,-498.97,0.00014246,2]
[383929555,1757177455276,-569.58,0.00014246,2]
[383929556,1757177455286,-168.67538617,0.00014246,2]
[383929557,1757177455295,-480.0,0.00014246,2]
[383929558,1757177455304,-480.0,0.00014246,2]
[383929559,1757177455314,-480.0,0.00014246,2]
[383929560,1757177455325,-480.0,0.00014246,2]
[383929561,1757177455335,-480.0,0.00014246,2]
[383929562,1757177455345,-480.0,0.00014246,2]
[383929563,1757177455355,-875.75,0.00014246,2]
[383929564,1757177455365,-578.34,0.00014246,2]
[383929565,1757177455374,-480.0,0.00014246,2]
[383929566,1757177455384,-616.1,0.00014246,2]
[383929567,1757177455394,-480.0,0.00014246,2]
[383929568,1757177455404,-527.18,0.00014246,2]
[383929569,1757177455413,-507.34,0.00014246,2]
[383929570,1757177455423,-503.07071902,0.00014246,2]
[383929571,1757177455433,-480.0,0.00014246,2]
[383929572,1757177455443,-480.0,0.00014246,2]
[383929573,1757177455453,-480.0,0.00014246,2]
[383929574,1757177455463,-480.0,0.00014246,2]
[383929575,1757177455472,-1165.68,0.00014246,2]
[383929576,1757177455484,-1125.83,0.00014246,2]
[383929577,1757177455493,-482.39,0.00014246,2]
[383929578,1757177455502,-485.12548743,0.00014246,2]
[383929579,1757177455512,-1067.59,0.00014246,2]
[383929580,1757177455521,-973.09,0.00014246,2]
[383929581,1757177455531,-480.0,0.00014246,2]
[383929582,1757177455540,-480.0,0.00014246,2]
[383929583,1757177455550,-964.99,0.00014246,2]
[383929584,1757177455559,-480.0,0.00014246,2]
[383929585,1757177455569,-480.0,0.00014246,2]
[383929586,1757177455578,-472.29753705,0.00014246,2]
[383929587,1757177455588,-873.8,0.00014246,2]
[383929588,1757177455597,-480.0,0.00014246,2]
[383929589,1757177455606,-391.65,0.00014246,2]
[383929590,1757177455616,-410.77386914,0.00014246,2]
[383929591,1757177455627,-480.0,0.00014246,2]
[383929592,1757177455637,-480.0,0.00014246,2]
[383929593,1757177455646,-480.0,0.00014246,2]
[383929594,1757177455656,-560.72,0.00014246,2]
[383929595,1757177455665,-480.0,0.00014246,2]
[383929596,1757177455675,-1426.0,0.00014246,2]
[383929597,1757177455684,-480.0,0.00014246,2]
[383929598,1757177455693,-480.0,0.00014246,2]
[383929599,1757177455702,-825.03,0.00014246,2]
[383929600,1757177455711,-480.0,0.00014246,2]
[383929601,1757177455720,-480.0,0.00014246,2]
[383929602,1757177455730,-926.49,0.00014246,2]
[383929603,1757177455739,-480.0,0.00014246,2]
[383929604,1757177455748,-480.0,0.00014246,2]
[383929605,1757177455757,-480.0,0.00014246,2]
[383929606,1757177455766,-690.23,0.00014246,2]
[383929607,1757177455775,-871.85,0.00014246,2]
[383929608,1757177455786,-957.78,0.00014246,2]
[383929609,1757177455795,-480.0,0.00014246,2]
[383929610,1757177455804,-480.0,0.00014246,2]
[383929611,1757177455814,-480.0,0.00014246,2]
[383929612,1757177455824,-480.0,0.00014246,2]
[383929613,1757177455833,-2798.46,0.00014246,2]
[383929614,1757177455842,-480.0,0.00014246,2]
[383929615,1757177455851,-482.7276579,0.00014246,2]
[383929616,1757177455860,-480.0,0.00014246,2]
[383929617,1757177455869,-480.0,0.00014246,2]
[383929618,1757177455879,-480.0,0.00014246,2]
[383929619,1757177455889,-1152.4,0.00014246,2]
[383929620,1757177455898,-480.0,0.00014246,2]
[383929621,1757177455907,-480.0,0.00014246,2]
[383929622,1757177455916,-480.0,0.00014246,2]
[383929623,1757177455925,-480.0,0.00014246,2]
[383929624,1757177455934,-480.0,0.00014246,2]
[383929625,1757177455944,-480.0,0.00014246,2]
[383929626,1757177455953,-480.0,0.00014246,2]
[383929627,1757177455962,-480.0,0.00014246,2]
[383929628,1757177455972,-480.0,0.00014246,2]
[383929629,1757177455981,-480.0,0.00014246,2]
[383929630,1757177455990,-587.4,0.00014246,2]
[383929631,1757177456000,-480.0,0.00014246,2]
[383929632,1757177456009,-480.0,0.00014246,2]
[383929633,1757177456020,-480.0,0.00014246,2]
[383929634,1757177456031,-15221.54,0.00014246,2]
[383929635,1757177456042,-610.71,0.00014246,2]
[383929636,1757177456052,-249.72992864,0.00014246,2]
[383929637,1757177456061,-480.0,0.00014246,2]
[383929638,1757177456071,-483.2585807,0.00014246,2]
[383929639,1757177456080,-549.36183634,0.00014246,2]
[383929640,1757177456089,-480.0,0.00014246,2]
[383929641,1757177456099,-480.0,0.00014246,2]
[383929642,1757177456110,-1043.99,0.00014246,2]
[383929643,1757177456119,-480.0,0.00014246,2]
[383929644,1757177456128,-1052.37,0.00014246,2]
[383929645,1757177456145,-480.0,0.00014246,2]
[383929646,1757177456156,-484.92205892,0.00014246,2]
[383929647,1757177456166,-480.0,0.00014246,2]
[383929648,1757177456175,-979.28,0.00014246,2]
[383929649,1757177456185,-154.46230683,0.00014246,2]
[383929650,1757177456195,-6275.02,0.00014246,2]
[383929651,1757177456206,-480.0,0.00014246,2]
[383929652,1757177456215,-813.95,0.00014246,2]
[383929653,1757177456225,-480.0,0.00014246,2]
[383929654,1757177456236,-3169.67,0.00014246,2]
[383929655,1757177456246,-480.0,0.00014246,2]
[383929656,1757177456256,-553.78782861,0.00014246,2]
[383929657,1757177456266,-1067.91,0.00014246,2]
[383929658,1757177456275,-480.0,0.00014246,2]
[383929659,1757177456285,-480.0,0.00014246,2]
[383929661,1757177456295,-2717.82,0.00014246,2]
[383929662,1757177456497,-577.83,0.00014246,2]
[383929663,1757177456507,-480.0,0.00014246,2]
[383929664,1757177456518,-480.0,0.00014246,2]
[383929665,1757177456528,-480.0,0.00014246,2]
[383929666,1757177456538,-480.0,0.00014246,2]
[383929667,1757177456547,-499.8,0.00014246,2]
[383929668,1757177456557,-6061.4,0.00014246,2]
[383929669,1757177456566,-1065.48,0.00014246,2]
[383929670,1757177456577,-606.33175504,0.00014246,2]
[383929671,1757177456586,-480.0,0.00014246,2]
[383929672,1757177456595,-2152.83,0.00014246,2]
[383929673,1757177456605,-2809.42,0.00014246,2]
[383929674,1757177456615,-1078.76,0.00014246,2]
[383929675,1757177456624,-480.0,0.00014246,2]
[383929676,1757177456634,-1202.61,0.00014246,2]
[383929677,1757177456644,-480.0,0.00014246,2]
[383929678,1757177456653,-480.0,0.00014246,2]
[383929679,1757177456663,-9746.93,0.00014246,2]
[383929680,1757177456673,-480.0,0.00014246,2]
[383929681,1757177456682,-480.0,0.00014246,2]
[383929682,1757177456692,-480.0,0.00014246,2]
[383929683,1757177456702,-480.0,0.00014246,2]
[383929684,1757177456712,-1876.88,0.00014246,2]
[383929685,1757177456722,-480.0,0.00014246,2]
[383929686,1757177456731,-480.0,0.00014246,2]
[383929687,1757177456741,-962.28,0.00014246,2]
[383929688,1757177456751,-480.0,0.00014246,2]
[383929689,1757177456761,-480.0,0.00014246,2]
[383929690,1757177456771,-806.91,0.00014246,2]
[383929691,1757177456781,-535.86,0.00014246,2]
[383929692,1757177456790,-480.0,0.00014246,2]
[383929693,1757177456800,-480.0,0.00014246,2]
[383929694,1757177456810,-480.0,0.00014246,2]
[383929695,1757177456820,-480.0,0.00014246,2]
[383929696,1757177456829,-855.08,0.00014246,2]
[383929697,1757177456839,-520.61,0.00014246,2]
[383929698,1757177456848,-3856.72,0.00014246,2]
[383929699,1757177456858,-480.0,0.00014246,2]
[383929700,1757177456867,-636.23,0.00014246,2]
[383929701,1757177456878,-981.94,0.00014246,2]
[383929702,1757177456887,-480.0,0.00014246,2]
[383929703,1757177456896,-2356.45,0.00014246,2]
[383929704,1757177456906,-1364.35,0.00014246,2]
[383929705,1757177456917,-480.0,0.00014246,2]
[383929706,1757177456926,-545.57,0.00014246,2]
[383929707,1757177456936,-480.0,0.00014246,2]
[383929708,1757177456946,-480.0,0.00014246,2]
[383929709,1757177456956,-3006.29,0.00014246,2]
[383929710,1757177456966,-614.49,0.00014246,2]
[383929711,1757177456976,-480.0,0.00014246,2]
[383929712,1757177456985,-480.0,0.00014246,2]
[383929713,1757177456995,-480.0,0.00014246,2]
[383929714,1757177457004,-725.56,0.00014246,2]
[383929715,1757177457014,-480.0,0.00014246,2]
[383929716,1757177457024,-480.0,0.00014246,2]
[383929717,1757177457037,-480.0,0.00014246,2]
[383929718,1757177457046,-663.97,0.00014246,2]
[383929719,1757177457056,-666.48,0.00014246,2]
[383929720,1757177457067,-480.0,0.00014246,2]
[383929721,1757177457080,-480.0,0.00014246,2]
[383929722,1757177457089,-4873.69,0.00014246,2]
[383929723,1757177457098,-480.0,0.00014246,2]
[383929724,1757177457107,-1785.88,0.00014246,2]
[383929725,1757177457118,-811.76,0.00014246,2]
[383929726,1757177457127,-2641.73,0.00014246,2]
[383929727,1757177457137,-1179.98,0.00014246,2]
[383929728,1757177457146,-480.0,0.00014246,2]
[383929729,1757177457156,-480.0,0.00014246,2]
[383929730,1757177457165,-480.0,0.00014246,2]
[383929731,1757177457175,-480.0,0.00014246,2]
[383929732,1757177457184,-480.0,0.00014246,2]
[383929733,1757177457194,-2177.29,0.00014246,2]
[383929734,1757177457204,-1653.43,0.00014246,2]
[383929735,1757177457214,-480.0,0.00014246,2]
[383929737,1757177457223,-1040.95,0.00014246,2]
[383929738,1757177457233,-1800.91,0.00014246,2]
[383929739,1757177457243,-767.71,0.00014246,2]
[383929740,1757177457252,-480.0,0.00014246,2]
[383929741,1757177457261,-480.0,0.00014246,2]
[383929742,1757177457271,-480.0,0.00014246,2]
[383929743,1757177457281,-624.64,0.00014246,2]
[383929744,1757177457290,-845.79,0.00014246,2]
[383929745,1757177457300,-492.36,0.00014246,2]
[383929746,1757177457310,-480.0,0.00014246,2]
[383929747,1757177457320,-480.0,0.00014246,2]
[383929748,1757177457329,-712.82,0.00014246,2]
[383929749,1757177457339,-480.0,0.00014246,2]
[383929750,1757177457349,-1852.25,0.00014246,2]
[383929751,1757177457360,-480.0,0.00014246,2]
[383929752,1757177457369,-947.78,0.00014246,2]
[383929753,1757177457380,-1118.06,0.00014246,2]
[383929754,1757177457390,-480.0,0.00014246,2]
[383929755,1757177457399,-749.42,0.00014246,2]
[383929756,1757177457410,-536.7,0.00014246,2]
[383929757,1757177457420,-889.4,0.00014246,2]
[383929758,1757177457430,-500.0,0.0001427,2]
[383929759,1757177457439,-160.0,0.00014273,2]
[383929760,1757177457449,-315.45765397,0.00014273,2]
[383929761,1757177457459,-600.0,0.000143,2]
[383929762,1757177457468,-168.0,0.000143,2]
[383929763,1757177457478,-500.0,0.00014425,2]
[383929764,1757177457489,-500.0,0.00014425,2]
[383929765,1757177457498,-885.71503495,0.00014444,2]
[383929766,1757177457508,-814.0,0.00014473,2]
[383929767,1757177457520,-500.0,0.0001452,2]
[383929768,1757177457532,-480.0,0.0001452,2]
[383929769,1757177457542,-982.86,0.0001452,2]
[383929770,1757177457551,-480.0,0.0001452,2]
[383929771,1757177457560,-480.0,0.0001452,2]
[383929772,1757177457571,-480.0,0.0001452,2]
[383929773,1757177457580,-480.0,0.0001452,2]
[383929774,1757177457590,-377.96751091,0.0001452,2]
[383929775,1757177457600,-480.0,0.0001452,2]
[383929776,1757177457610,-480.0,0.0001452,2]
[383929777,1757177457620,-653.35,0.0001452,2]
[383929778,1757177457629,-480.0,0.0001452,2]
[383929779,1757177457638,-480.0,0.0001452,2]
[383929780,1757177457648,-1088.68,0.0001452,2]
[383929781,1757177457657,-1031.24,0.0001452,2]
[383929782,1757177457667,-180.40609186,0.0001452,2]
[383929783,1757177457676,-480.0,0.0001452,2]
[383929784,1757177457685,-480.0,0.0001452,2]
[383929785,1757177457695,-498.97,0.0001452,2]
[383929786,1757177457705,-569.58,0.0001452,2]
[383929787,1757177457714,-480.0,0.0001452,2]
[383929788,1757177457725,-480.0,0.0001452,2]
[383929789,1757177457735,-480.0,0.0001452,2]
[383929790,1757177457744,-480.0,0.0001452,2]
[383929791,1757177457754,-480.0,0.0001452,2]
[383929792,1757177457763,-480.0,0.0001452,2]
[383929793,1757177457773,-875.75,0.0001452,2]
[383929794,1757177457783,-578.34,0.0001452,2]
[383929795,1757177457792,-480.0,0.0001452,2]
[383929796,1757177457802,-616.1,0.0001452,2]
[383929797,1757177457811,-480.0,0.0001452,2]
[383929798,1757177457822,-527.18,0.0001452,2]
[383929799,1757177457832,-507.34,0.0001452,2]
[383929800,1757177457841,-480.0,0.0001452,2]
[383929801,1757177457851,-480.0,0.0001452,2]
[383929802,1757177457861,-480.0,0.0001452,2]
[383929803,1757177457871,-480.0,0.0001452,2]
[383929804,1757177457880,-1165.68,0.0001452,2]
[383929805,1757177457890,-1125.83,0.0001452,2]
[383929806,1757177457901,-482.39,0.0001452,2]
[383929807,1757177457911,-1067.59,0.0001452,2]
[383929808,1757177457920,-973.09,0.0001452,2]
[383929809,1757177457930,-480.0,0.0001452,2]
[383929810,1757177457940,-480.0,0.0001452,2]
[383929811,1757177457949,-964.99,0.0001452,2]
[383929812,1757177457959,-480.0,0.0001452,2]
[383929813,1757177457969,-480.0,0.0001452,2]
[383929814,1757177457978,-873.8,0.0001452,2]
[383929815,1757177457987,-480.0,0.0001452,2]
[383929816,1757177457997,-480.0,0.0001452,2]
[383929817,1757177458006,-480.0,0.0001452,2]
[383929818,1757177458015,-480.0,0.0001452,2]
[383929819,1757177458025,-560.72,0.0001452,2]
[383929820,1757177458037,-480.0,0.0001452,2]
[383929821,1757177458046,-1426.0,0.0001452,2]
[383929822,1757177458056,-480.0,0.0001452,2]
[383929823,1757177458066,-278.0977407,0.0001452,2]
[383929824,1757177458077,-825.03,0.0001452,2]
[383929825,1757177458086,-480.0,0.0001452,2]
[383929826,1757177458095,-480.0,0.0001452,2]
[383929827,1757177458107,-926.49,0.0001452,2]
[383929828,1757177458117,-480.0,0.0001452,2]
[383929829,1757177458126,-480.0,0.0001452,2]
[383929830,1757177458135,-690.23,0.0001452,2]
[383929831,1757177458145,-871.85,0.0001452,2]
[383929832,1757177458154,-957.78,0.0001452,2]
[383929833,1757177458163,-480.0,0.0001452,2]
[383929834,1757177458173,-480.0,0.0001452,2]
[383929835,1757177458182,-480.0,0.0001452,2]
[383929836,1757177458193,-480.0,0.0001452,2]
[383929837,1757177458204,-2798.46,0.0001452,2]
[383929838,1757177458213,-480.0,0.0001452,2]
[383929839,1757177458222,-480.0,0.0001452,2]
[383929840,1757177458233,-480.0,0.0001452,2]
[383929841,1757177458242,-480.0,0.0001452,2]
[383929842,1757177458253,-1152.4,0.0001452,2]
[383929843,1757177458262,-436.08216392,0.0001452,2]
[383929844,1757177458272,-480.0,0.0001452,2]
[383929845,1757177458281,-303.49830244,0.0001452,2]
[383929846,1757177458290,-480.0,0.0001452,2]
[383929847,1757177458300,-480.0,0.0001452,2]
[383929848,1757177458311,-480.0,0.0001452,2]
[383929849,1757177458320,-274.24216025,0.0001452,2]
[383929850,1757177458330,-480.0,0.0001452,2]
[383929851,1757177458339,-480.0,0.0001452,2]
[383929852,1757177458349,-625.25693867,0.0001452,2]
[383929853,1757177458359,-587.4,0.0001452,2]
[383929854,1757177458369,-480.0,0.0001452,2]
[383929855,1757177458379,-480.0,0.0001452,2]
[383929856,1757177458388,-480.0,0.0001452,2]
[383929857,1757177458398,-3573.8272198,0.0001452,2]
[383929858,1757177458575,-480.0,0.00014246,2]
[383929859,1757177458585,-326.64838715,0.0001452,2]
[383929876,1757177693846,10000.0,0.00012536,2]
[383929877,1757177850262,666.0,0.00012511,2]
[383929959,1757178637696,-395.19647968,0.00013194,2]
[383930002,1757178638209,-300.0,0.00013462,2]
[383930003,1757178638218,-300.0,0.00013462,2]
[383930004,1757178638229,-4843.59779794,0.00013463,2]
[383930005,1757178638242,-428.79999999,0.00013463,2]
[383930006,1757178638253,-1512.77166195,0.00013463,2]
[383930012,1757178638561,-1230.01990208,0.00013463,2]
[383930014,1757178638735,-41984.81063804,0.00013463,2]
[383930015,1757178638745,-500.0,0.00013463,2]
[383930016,1757178638755,-500.0,0.00013463,2]
[383930017,1757178638767,-500.0,0.00013463,2]
[383930018,1757178638776,-260.70915785,0.00013463,2]
[383930019,1757178638786,-500.0,0.00013463,2]
[383930020,1757178638795,-504.79344443,0.00013463,2]
[383930021,1757178638804,-500.0,0.00013463,2]
[383930022,1757178638813,-500.0,0.00013463,2]
[383930023,1757178638823,-500.0,0.00013463,2]
[383930024,1757178638833,-500.0,0.00013463,2]
[383930025,1757178638842,-500.0,0.00013463,2]
[383930026,1757178638851,-500.0,0.00013463,2]
[383930027,1757178638861,-200.0,0.00013463,2]
[383930028,1757178638870,-500.0,0.00013463,2]
[383930029,1757178638880,-509.20152628,0.00013463,2]
[383930030,1757178638889,-500.0,0.00013463,2]
[383930031,1757178638899,-500.0,0.00013463,2]
[383930032,1757178638908,-404.42676955,0.00013463,2]
[383930033,1757178638917,-289.85,0.00013463,2]
[383930034,1757178638927,-324.19102423,0.00013463,2]
[383930035,1757178638936,-500.0,0.00013463,2]
[383930036,1757178638946,-500.0,0.00013463,2]
[383930037,1757178638955,-500.0,0.00013463,2]
[383930038,1757178638965,-500.0,0.00013463,2]
[383930039,1757178638975,-340.06267562,0.00013463,2]
[383930040,1757178638984,-500.0,0.00013463,2]
[383930041,1757178638994,-400.0,0.00013463,2]
[383930042,1757178639003,-500.0,0.00013463,2]
[383930043,1757178639013,-500.0,0.00013463,2]
[383930044,1757178639022,-65404.30081695,0.00013464,2]
[383930045,1757178639039,-27720.03,0.00013464,2]
[383930046,1757178639054,-24550.22,0.00013464,2]
[383930095,1757178640806,-583.66905001,0.00013464,2]
[383930189,1757178646789,-1369.14886742,0.00013464,2]
[383930191,1757178699189,2361.7158347,0.00012563,2]
[383930192,1757178726814,10000.0,0.00012563,2]
[383930193,1757179019762,1072.67615911,0.00013065,2]
[383930196,1757179334429,626.15492305,0.00013065,2]
[383930197,1757179358092,626.15492305,0.00013065,2]
[383930198,1757179365327,319.2745905,0.00012404,2]
[383930265,1757179831841,-345.14978172,0.00013197,2]
[383930590,1757179839774,-281.00514133,0.00013197,2]
[383930591,1757179839784,-169.9243426,0.00013273,2]
[383930592,1757179839795,-300.0,0.00013362,2]
[383930593,1757179839805,-50000.0,0.00013363,2]
[383930594,1757179839815,-500.0,0.00013363,2]
[383930596,1757179839824,-182.4964105,0.00013363,2]
[383930598,1757179839834,-500.0,0.00013363,2]
[383930600,1757179839844,-500.0,0.00013363,2]
[383930602,1757179839853,-500.0,0.00013363,2]
[383930604,1757179839863,-500.0,0.00013363,2]
[383930606,1757179839872,-500.0,0.00013363,2]
[383930608,1757179839882,-283.3554111,0.00013363,2]
[383930610,1757179839891,-500.0,0.00013363,2]
[383930612,1757179839901,-500.0,0.00013363,2]
[383930614,1757179839911,-500.0,0.00013363,2]
[383930616,1757179839920,-500.0,0.00013363,2]
[383930618,1757179839930,-500.0,0.00013363,2]
[383930620,1757179839940,-315.56251951,0.00013363,2]
[383930622,1757179839949,-500.0,0.00013363,2]
[383930624,1757179839958,-500.0,0.00013363,2]
[383930626,1757179839969,-500.0,0.00013363,2]